bitfinex/quotes_BTCUSD_20230901
["timestamp","ask_amount","ask_price","bid_price","bid_amount"]
[1693536681283,1.12357131,26103.0,26102.0,1.57051]
[1693536681680,0.873372,26103.0,26102.0,1.57051]
[1693536685314,1.11056264,26103.0,26102.0,1.57051]
[1693536685610,1.11056264,26103.0,26102.0,0.695855]
[1693536686228,1.27646264,26103.0,26102.0,0.695855]
[1693536686610,1.039272,26103.0,26102.0,0.003]
[1693536686809,1.25576613,26103.0,26102.0,0.003]
[1693536694620,1.25576613,26103.0,26102.0,0.006532]
[1693536696828,1.32235597,26103.0,26102.0,0.006532]
[1693536697034,1.25576613,26103.0,26102.0,0.006532]
[1693536697275,1.039272,26103.0,26102.0,0.124732]
[1693536699468,1.029272,26103.0,26102.0,0.124732]
[1693536701180,1.24841388,26103.0,26102.0,0.124732]
[1693536707477,1.24841388,26103.0,26102.0,0.119732]
[1693536712403,1.24841388,26103.0,26102.0,0.6944]
[1693536713039,1.40502527,26103.0,26102.0,0.6944]
[1693536714254,1.40502527,26103.0,26102.0,0.5762]
[1693536716885,1.24841388,26103.0,26102.0,0.5762]
[1693536719952,1.029272,26103.0,26102.0,0.6944]
[1693536720793,1.029272,26103.0,26102.0,1.269068]
[1693536721309,1.25437415,26103.0,26102.0,0.5762]
[1693536725159,1.43453593,26103.0,26102.0,0.5762]
[1693536725565,1.25437415,26103.0,26102.0,0.5762]
[1693536728921,1.34619159,26103.0,26102.0,0.5762]
[1693536730718,1.48391776,26103.0,26102.0,0.5762]
[1693536731118,1.39210032,26103.0,26102.0,0.001532]
[1693536737065,1.28780272,26103.0,26102.0,0.001532]
[1693536737291,2.14941979,26103.0,26102.0,0.001532]
[1693536737638,2.14975986,26103.0,26102.0,0.001532]
[1693536738062,2.12975986,26103.0,26102.0,0.001532]
[1693536738476,2.17575986,26103.0,26102.0,0.001532]
[1693536738680,2.15275986,26103.0,26102.0,0.001532]
[1693536738862,2.38528212,26103.0,26102.0,0.001532]
[1693536739107,2.18875986,26103.0,26102.0,0.001532]
[1693536739306,2.42217811,26103.0,26102.0,0.001532]
[1693536739649,2.16575986,26103.0,26102.0,0.001532]
[1693536739840,2.20175986,26103.0,26102.0,0.001532]
[1693536740970,2.38566356,26103.0,26102.0,0.001532]
[1693536744408,2.64169087,26103.0,26102.0,0.001532]
[1693536744612,2.38566356,26103.0,26102.0,0.001532]
[1693536744817,2.60920453,26103.0,26102.0,0.001532]
[1693536745196,2.38566356,26103.0,26102.0,0.001532]
[1693536745584,2.65062781,26103.0,26102.0,0.001532]
[1693536745783,2.15568663,26103.0,26102.0,0.001532]
[1693536746227,2.43463197,26103.0,26102.0,0.001532]
[1693536746444,2.15568663,26103.0,26102.0,0.001532]
[1693536747392,2.38445477,26103.0,26102.0,0.001532]
[1693536747839,2.15568663,26103.0,26102.0,0.001532]
[1693536748861,2.73033263,26103.0,26102.0,0.001532]
[1693536749258,2.15568663,26103.0,26102.0,0.001532]
[1693536750071,2.20175986,26103.0,26102.0,0.001532]
[1693536750381,2.77640586,26103.0,26102.0,0.001532]
[1693536751813,2.20175986,26103.0,26102.0,0.001532]
[1693536752662,2.77640586,26103.0,26102.0,0.001532]
[1693536754701,3.73813864,26103.0,26102.0,0.001532]
[1693536754920,3.64106171,26103.0,26102.0,0.001532]
[1693536755136,3.66200171,26103.0,26102.0,0.001532]
[1693536755357,3.65378171,26103.0,26102.0,0.001532]
[1693536755593,3.75524171,26103.0,26102.0,0.001532]
[1693536755795,3.68636171,26103.0,26102.0,0.001532]
[1693536755998,3.75122171,26103.0,26102.0,0.001532]
[1693536756210,3.75098171,26103.0,26102.0,0.001532]
[1693536756427,3.75434171,26103.0,26102.0,0.001532]
[1693536756638,3.75344171,26103.0,26102.0,0.001532]
[1693536756860,3.75440171,26103.0,26102.0,0.001532]
[1693536757084,3.75512171,26103.0,26102.0,0.001532]
[1693536757265,3.75542171,26103.0,26102.0,0.001532]
[1693536757494,3.75560171,26103.0,26102.0,0.001532]
[1693536757648,3.75566171,26103.0,26102.0,0.001532]
[1693536757827,3.75710171,26103.0,26102.0,0.001532]
[1693536758028,3.75908171,26103.0,26102.0,0.001532]
[1693536758252,3.75734171,26103.0,26102.0,0.001532]
[1693536758454,3.76346171,26103.0,26102.0,0.001532]
[1693536758687,3.75890171,26103.0,26102.0,0.001532]
[1693536758860,3.75848171,26103.0,26102.0,0.001532]
[1693536759036,3.75860171,26103.0,26102.0,0.001532]
[1693536759244,3.72428171,26103.0,26102.0,0.001532]
[1693536759448,3.76052171,26103.0,26102.0,0.001532]
[1693536759654,3.72344171,26103.0,26102.0,0.001532]
[1693536759850,3.72524171,26103.0,26102.0,0.001532]
[1693536760052,3.72692171,26103.0,26102.0,0.001532]
[1693536760261,3.68900171,26103.0,26102.0,0.001532]
[1693536760493,3.72524171,26103.0,26102.0,0.001532]
[1693536760703,3.72890171,26103.0,26102.0,0.001532]
[1693536760889,3.72938171,26103.0,26102.0,0.001532]
[1693536761090,3.73004171,26103.0,26102.0,0.001532]
[1693536761291,3.76652171,26103.0,26102.0,0.001532]
[1693536761522,3.76856171,26103.0,26102.0,0.001532]
[1693536761841,3.76658171,26103.0,26102.0,0.001532]
[1693536762052,3.76880171,26103.0,26102.0,0.001532]
[1693536762248,3.76610171,26103.0,26102.0,0.001532]
[1693536762455,3.76730171,26103.0,26102.0,0.001532]
[1693536762680,3.76724171,26103.0,26102.0,0.001532]
[1693536762887,3.76742171,26103.0,26102.0,0.001532]
[1693536763069,3.77042171,26103.0,26102.0,0.001532]
[1693536763364,3.76586171,26103.0,26102.0,0.001532]
[1693536763701,3.76448171,26103.0,26102.0,0.001532]
[1693536763900,3.76574171,26103.0,26102.0,0.001532]
[1693536764162,3.76394171,26103.0,26102.0,0.001532]
[1693536764369,3.76262171,26103.0,26102.0,0.001532]
[1693536764598,3.75782171,26103.0,26102.0,0.001532]
[1693536764801,3.75788171,26103.0,26102.0,0.001532]
[1693536765000,3.75836171,26103.0,26102.0,0.001532]
[1693536765227,3.76118171,26103.0,26102.0,0.001532]
[1693536765411,3.75848171,26103.0,26102.0,0.001532]
[1693536765615,3.75854171,26103.0,26102.0,0.001532]
[1693536765818,3.75848171,26103.0,26102.0,0.001532]
[1693536766009,3.75860171,26103.0,26102.0,0.001532]
[1693536766215,3.76214171,26103.0,26102.0,0.001532]
[1693536766412,3.76022171,26103.0,26102.0,0.001532]
[1693536766642,3.76136171,26103.0,26102.0,0.001532]
[1693536766814,3.75962171,26103.0,26102.0,0.001532]
[1693536767135,3.75992171,26103.0,26102.0,0.001532]
[1693536767280,3.76244171,26103.0,26102.0,0.001532]
[1693536767487,3.75950171,26103.0,26102.0,0.001532]
[1693536767722,3.75920171,26103.0,26102.0,0.001532]
[1693536767905,3.76004171,26103.0,26102.0,0.001532]
[1693536768218,3.76034171,26103.0,26102.0,0.001532]
[1693536768386,3.76052171,26103.0,26102.0,0.001532]
[1693536768587,3.79133085,26103.0,26102.0,0.001532]
[1693536768788,3.79373085,26103.0,26102.0,0.001532]
[1693536768998,3.79127085,26103.0,26102.0,0.001532]
[1693536769204,3.79349085,26103.0,26102.0,0.001532]
[1693536769458,3.79133085,26103.0,26102.0,0.001532]
[1693536769667,3.79313085,26103.0,26102.0,0.001532]
[1693536769877,3.79577085,26103.0,26102.0,0.001532]
[1693536770084,3.79613085,26103.0,26102.0,0.001532]
[1693536770287,3.79541085,26103.0,26102.0,0.001532]
[1693536770511,3.79559085,26103.0,26102.0,0.001532]
[1693536770745,3.79463085,26103.0,26102.0,0.001532]
[1693536770935,3.79475085,26103.0,26102.0,0.001532]
[1693536771140,3.79493085,26103.0,26102.0,0.001532]
[1693536771710,3.79541085,26103.0,26102.0,0.001532]
[1693536771929,3.80747085,26103.0,26102.0,0.001532]
[1693536772100,3.79745085,26103.0,26102.0,0.001532]
[1693536772307,3.79799085,26103.0,26102.0,0.001532]
[1693536772663,3.79793085,26103.0,26102.0,0.001532]
[1693536773000,3.79733085,26103.0,26102.0,0.001532]
[1693536773245,3.79781085,26103.0,26102.0,0.001532]
[1693536773425,3.79763085,26103.0,26102.0,0.001532]
[1693536773617,3.79751085,26103.0,26102.0,0.001532]
[1693536773813,3.79739085,26103.0,26102.0,0.001532]
[1693536774025,3.80297085,26103.0,26102.0,0.001532]
[1693536774177,3.80303085,26103.0,26102.0,0.001532]
[1693536774381,3.80297085,26103.0,26102.0,0.001532]
[1693536774596,3.80087085,26103.0,26102.0,0.001532]
[1693536774800,3.80069085,26103.0,26102.0,0.001532]
[1693536775007,3.79997085,26103.0,26102.0,0.001532]
[1693536775209,3.80147085,26103.0,26102.0,0.001532]
[1693536775456,3.80051085,26103.0,26102.0,0.001532]
[1693536775649,3.79955085,26103.0,26102.0,0.001532]
[1693536775852,3.80477085,26103.0,26102.0,0.001532]
[1693536776080,3.80459085,26103.0,26102.0,0.001532]
[1693536776299,3.80519085,26103.0,26102.0,0.001532]
[1693536776576,3.80573085,26103.0,26102.0,0.001532]
[1693536776777,3.80585085,26103.0,26102.0,0.001532]
[1693536776979,3.80579085,26103.0,26102.0,0.001532]
[1693536777207,3.80567085,26103.0,26102.0,0.001532]
[1693536777423,3.80561085,26103.0,26102.0,0.001532]
[1693536777614,3.80201085,26103.0,26102.0,0.001532]
[1693536777750,3.80117085,26103.0,26102.0,0.001532]
[1693536777956,3.80153085,26103.0,26102.0,0.001532]
[1693536778158,4.07763509,26103.0,26102.0,0.001532]
[1693536778367,4.08321509,26103.0,26102.0,0.001532]
[1693536778573,4.07205509,26103.0,26102.0,0.001532]
[1693536778771,4.07919509,26103.0,26102.0,0.001532]
[1693536778975,4.07985509,26103.0,26102.0,0.001532]
[1693536779170,4.07829509,26103.0,26102.0,0.001532]
[1693536779400,4.07823509,26103.0,26102.0,0.001532]
[1693536779604,4.08141509,26103.0,26102.0,0.001532]
[1693536779816,4.06251509,26103.0,26102.0,0.001532]
[1693536779987,4.05843509,26103.0,26102.0,0.001532]
[1693536780167,4.05849509,26103.0,26102.0,0.001532]
[1693536780369,4.05963509,26103.0,26102.0,0.001532]
[1693536780613,4.05981509,26103.0,26102.0,0.001532]
[1693536780821,4.05975509,26103.0,26102.0,0.001532]
[1693536781014,4.05855509,26103.0,26102.0,0.001532]
[1693536781227,4.05861509,26103.0,26102.0,0.001532]
[1693536781434,4.05867509,26103.0,26102.0,0.001532]
[1693536781605,4.05837509,26103.0,26102.0,0.001532]
[1693536781814,4.05945509,26103.0,26102.0,0.001532]
[1693536782075,4.06125509,26103.0,26102.0,0.001532]
[1693536782306,4.06275509,26103.0,26102.0,0.001532]
[1693536782440,4.06227509,26103.0,26102.0,0.001532]
[1693536782841,4.06203509,26103.0,26102.0,0.001532]
[1693536783062,4.06179509,26103.0,26102.0,0.001532]
[1693536783263,4.06239509,26103.0,26102.0,0.001532]
[1693536783445,4.06143509,26103.0,26102.0,0.001532]
[1693536783669,4.06245509,26103.0,26102.0,0.001532]
[1693536783871,4.06371509,26103.0,26102.0,0.001532]
[1693536784046,4.06257509,26103.0,26102.0,0.001532]
[1693536784245,4.06281509,26103.0,26102.0,0.001532]
[1693536784492,4.06275509,26103.0,26102.0,0.001532]
[1693536784734,4.06287509,26103.0,26102.0,0.001532]
[1693536784935,4.06293509,26103.0,26102.0,0.001532]
[1693536785153,4.06359509,26103.0,26102.0,0.001532]
[1693536785357,4.06269509,26103.0,26102.0,0.001532]
[1693536785534,4.06251509,26103.0,26102.0,0.001532]
[1693536785737,4.06119509,26103.0,26102.0,0.001532]
[1693536785992,4.06023509,26103.0,26102.0,0.001532]
[1693536786194,4.05825509,26103.0,26102.0,0.001532]
[1693536786393,4.05867509,26103.0,26102.0,0.001532]
[1693536786592,4.05873509,26103.0,26102.0,0.001532]
[1693536786811,4.05879509,26103.0,26102.0,0.001532]
[1693536787008,4.05891509,26103.0,26102.0,0.001532]
[1693536787230,4.05975509,26103.0,26102.0,0.001532]
[1693536787424,3.75975509,26103.0,26102.0,0.001532]
[1693536787569,3.52112073,26103.0,26102.0,0.001532]
[1693536787769,3.52526073,26103.0,26102.0,0.001532]
[1693536787973,3.52532073,26103.0,26102.0,0.001532]
[1693536788201,3.67867173,26103.0,26102.0,0.001532]
[1693536788402,3.67807173,26103.0,26102.0,0.001532]
[1693536788568,3.67813173,26103.0,26102.0,0.001532]
[1693536789133,3.67939173,26103.0,26102.0,0.001532]
[1693536789333,3.67819173,26103.0,26102.0,0.001532]
[1693536789534,3.67723173,26103.0,26102.0,0.001532]
[1693536789741,3.67825173,26103.0,26102.0,0.001532]
[1693536790303,3.67819173,26103.0,26102.0,0.001532]
[1693536790655,3.67831173,26103.0,26102.0,0.001532]
[1693536790851,3.67843173,26103.0,26102.0,0.001532]
[1693536791609,3.87462218,26103.0,26102.0,0.001532]
[1693536792027,1.58186616,26103.0,26102.0,0.001532]
[1693536792456,1.91051181,26103.0,26102.0,0.001532]
[1693536794108,2.48515781,26103.0,26102.0,0.001532]
[1693536796977,2.20959357,26103.0,26102.0,0.001532]
[1693536797218,2.48569759,26103.0,26102.0,0.001532]
[1693536797546,2.20959357,26103.0,26102.0,0.001532]
[1693536799369,2.94293957,26103.0,26102.0,0.001532]
[1693536799563,3.00791957,26103.0,26102.0,0.001532]
[1693536799792,3.00815957,26103.0,26102.0,0.001532]
[1693536800055,3.40005374,26103.0,26102.0,0.001532]
[1693536800250,3.91440052,26103.0,26102.0,0.001532]
[1693536800450,3.91248052,26103.0,26102.0,0.001532]
[1693536800676,3.90966052,26103.0,26102.0,0.001532]
[1693536801011,3.90960052,26103.0,26102.0,0.001532]
[1693536801225,3.90954052,26103.0,26102.0,0.001532]
[1693536801428,3.90960052,26103.0,26102.0,0.001532]
[1693536801617,3.92196052,26103.0,26102.0,0.001532]
[1693536801817,3.92130052,26103.0,26102.0,0.001532]
[1693536802025,3.91962052,26103.0,26102.0,0.001532]
[1693536802279,3.91932052,26103.0,26102.0,0.001532]
[1693536802433,3.91938052,26103.0,26102.0,0.001532]
[1693536802778,3.92196052,26103.0,26102.0,0.001532]
[1693536803104,3.91830052,26103.0,26102.0,0.001532]
[1693536803342,3.91818052,26103.0,26102.0,0.001532]
[1693536803543,3.91770052,26103.0,26102.0,0.001532]
[1693536803755,3.92112052,26103.0,26102.0,0.001532]
[1693536803969,3.91920052,26103.0,26102.0,0.001532]
[1693536804183,3.92430052,26103.0,26102.0,0.001532]
[1693536804401,3.92946052,26103.0,26102.0,0.001532]
[1693536804610,3.92790052,26103.0,26102.0,0.001532]
[1693536804860,3.92844052,26103.0,26102.0,0.001532]
[1693536805086,3.92814052,26103.0,26102.0,0.001532]
[1693536805283,3.92892052,26103.0,26102.0,0.001532]
[1693536805461,3.92826052,26103.0,26102.0,0.001532]
[1693536805690,3.92904052,26103.0,26102.0,0.001532]
[1693536805819,3.92898052,26103.0,26102.0,0.001532]
[1693536806030,3.92886052,26103.0,26102.0,0.001532]
[1693536806242,3.92832052,26103.0,26102.0,0.001532]
[1693536806662,3.92874052,26103.0,26102.0,0.001532]
[1693536806870,3.92712052,26103.0,26102.0,0.001532]
[1693536807045,3.93030052,26103.0,26102.0,0.001532]
[1693536807246,3.92448052,26103.0,26102.0,0.001532]
[1693536807483,3.92328052,26103.0,26102.0,0.001532]
[1693536807684,3.92004052,26103.0,26102.0,0.001532]
[1693536807884,3.92358052,26103.0,26102.0,0.001532]
[1693536808083,3.92790052,26103.0,26102.0,0.001532]
[1693536808338,3.92358052,26103.0,26102.0,0.001532]
[1693536808512,3.92826052,26103.0,26102.0,0.001532]
[1693536808667,3.92838052,26103.0,26102.0,0.001532]
[1693536808868,3.92652052,26103.0,26102.0,0.001532]
[1693536809067,3.92454052,26103.0,26102.0,0.001532]
[1693536809269,3.92196052,26103.0,26102.0,0.001532]
[1693536809499,3.91404052,26103.0,26102.0,0.001532]
[1693536809697,3.91560052,26103.0,26102.0,0.001532]
[1693536809892,3.91548052,26103.0,26102.0,0.001532]
[1693536810302,3.92304052,26103.0,26102.0,0.001532]
[1693536810505,3.91482052,26103.0,26102.0,0.001532]
[1693536810707,3.91692052,26103.0,26102.0,0.001532]
[1693536810908,3.91728052,26103.0,26102.0,0.001532]
[1693536811114,3.91776052,26103.0,26102.0,0.001532]
[1693536811377,3.91746052,26103.0,26102.0,0.001532]
[1693536811558,3.91752052,26103.0,26102.0,0.001532]
[1693536811712,3.91758052,26103.0,26102.0,0.001532]
[1693536811896,3.91746052,26103.0,26102.0,0.001532]
[1693536812097,3.91458052,26103.0,26102.0,0.001532]
[1693536812297,3.91482052,26103.0,26102.0,0.001532]
[1693536812523,3.92076052,26103.0,26102.0,0.001532]
[1693536812742,3.91446052,26103.0,26102.0,0.001532]
[1693536812938,3.92094052,26103.0,26102.0,0.001532]
[1693536813153,3.91668052,26103.0,26102.0,0.001532]
[1693536813458,3.91698052,26103.0,26102.0,0.001532]
[1693536813679,3.91782052,26103.0,26102.0,0.001532]
[1693536813966,3.93216052,26103.0,26102.0,0.001532]
[1693536814177,3.93204052,26103.0,26102.0,0.001532]
[1693536814376,3.93126052,26103.0,26102.0,0.001532]
[1693536814579,3.93030052,26103.0,26102.0,0.001532]
[1693536814787,3.92910052,26103.0,26102.0,0.001532]
[1693536815010,3.92688052,26103.0,26102.0,0.001532]
[1693536815242,3.92496052,26103.0,26102.0,0.001532]
[1693536815361,3.92484052,26103.0,26102.0,0.001532]
[1693536815578,3.92406052,26103.0,26102.0,0.001532]
[1693536815778,3.95852422,26103.0,26102.0,0.001532]
[1693536816037,4.22107412,26103.0,26102.0,0.001532]
[1693536816277,3.93914422,26103.0,26102.0,0.001532]
[1693536816501,3.93896422,26103.0,26102.0,0.001532]
[1693536816725,3.93866422,26103.0,26102.0,0.001532]
[1693536817067,4.09487014,26103.0,26102.0,0.001532]
[1693536817368,4.09499014,26103.0,26102.0,0.001532]
[1693536817566,4.09523014,26103.0,26102.0,0.001532]
[1693536817766,3.82016422,26103.0,26102.0,0.001532]
[1693536817927,4.07422797,26103.0,26102.0,0.001532]
[1693536818122,4.07356797,26103.0,26102.0,0.001532]
[1693536818330,4.07428797,26103.0,26102.0,0.001532]
[1693536818793,3.82094422,26103.0,26102.0,0.001532]
[1693536818979,3.78978052,26103.0,26102.0,0.001532]
[1693536819594,3.78984052,26103.0,26102.0,0.001532]
[1693536819797,3.78990052,26103.0,26102.0,0.001532]
[1693536819997,3.78996052,26103.0,26102.0,0.001532]
[1693536820178,3.79002052,26103.0,26102.0,0.001532]
[1693536820377,3.78996052,26103.0,26102.0,0.001532]
[1693536820765,4.03424236,26103.0,26102.0,0.001532]
[1693536820959,3.78840052,26103.0,26102.0,0.001532]
[1693536821185,3.78852052,26103.0,26102.0,0.001532]
[1693536821388,3.78846052,26103.0,26102.0,0.001532]
[1693536821609,3.78834052,26103.0,26102.0,0.001532]
[1693536821783,3.78858052,26103.0,26102.0,0.001532]
[1693536821984,3.78864052,26103.0,26102.0,0.001532]
[1693536822164,3.78858052,26103.0,26102.0,0.001532]
[1693536822359,3.78864052,26103.0,26102.0,0.001532]
[1693536822594,3.78846052,26103.0,26102.0,0.001532]
[1693536822807,3.78852052,26103.0,26102.0,0.001532]
[1693536823417,3.78864052,26103.0,26102.0,0.001532]
[1693536823617,3.40112635,26103.0,26102.0,0.001532]
[1693536823848,3.40100635,26103.0,26102.0,0.001532]
[1693536824042,3.65004344,26103.0,26102.0,0.001532]
[1693536824246,3.39878635,26103.0,26102.0,0.001532]
[1693536824485,3.39914635,26103.0,26102.0,0.001532]
[1693536824691,3.39920635,26103.0,26102.0,0.001532]
[1693536824906,3.62639157,26103.0,26102.0,0.001532]
[1693536825091,3.62645157,26103.0,26102.0,0.001532]
[1693536825214,3.62663157,26103.0,26102.0,0.001532]
[1693536825413,3.62723157,26103.0,26102.0,0.001532]
[1693536825615,2.3080417,26103.0,26102.0,0.001532]
[1693536825824,2.2380217,26103.0,26102.0,0.001532]
[1693536827305,2.02203435,26103.0,26102.0,0.001532]
[1693536830776,2.2647436,26103.0,26102.0,0.001532]
[1693536831200,2.02203435,26103.0,26102.0,0.001532]
[1693536831410,2.23757444,26103.0,26102.0,0.001532]
[1693536831924,2.02203435,26103.0,26102.0,0.001532]
[1693536832122,2.22154364,26103.0,26102.0,0.001532]
[1693536832377,2.14665307,26103.0,26102.0,0.001532]
[1693536832553,2.22144107,26103.0,26102.0,0.001532]
[1693536832749,2.02193178,26103.0,26102.0,0.001532]
[1693536832967,2.22128427,26103.0,26102.0,0.001532]
[1693536834640,2.02193178,26103.0,26102.0,0.001532]
[1693536834963,2.30191814,26103.0,26102.0,0.001532]
[1693536835836,2.02193178,26103.0,26102.0,0.001532]
[1693536837133,2.28082939,26103.0,26102.0,0.001532]
[1693536837572,2.02193178,26103.0,26102.0,0.001532]
[1693536837752,2.18573178,26103.0,26102.0,0.001532]
[1693536838145,2.45799675,26103.0,26102.0,0.001532]
[1693536838493,2.18573178,26103.0,26102.0,0.001532]
[1693536838896,2.46376884,26103.0,26102.0,0.001532]
[1693536839324,2.18573178,26103.0,26102.0,0.001532]
[1693536839486,2.45230761,26103.0,26102.0,0.001532]
[1693536839690,2.18573178,26103.0,26102.0,0.001532]
[1693536840066,2.39198965,26103.0,26102.0,0.001532]
[1693536840283,2.18573178,26103.0,26102.0,0.001532]
[1693536840990,2.39565256,26103.0,26102.0,0.001532]
[1693536841587,2.18573178,26103.0,26102.0,0.001532]
[1693536841891,2.44220342,26103.0,26102.0,0.001532]
[1693536842532,2.18573178,26103.0,26102.0,0.001532]
[1693536842852,2.39092893,26103.0,26102.0,0.001532]
[1693536843530,2.18573178,26103.0,26102.0,0.001532]
[1693536846313,2.41042002,26103.0,26102.0,0.001532]
[1693536846686,2.18573178,26103.0,26102.0,0.001532]
[1693536847633,2.40426385,26103.0,26102.0,0.001532]
[1693536848617,2.18573178,26103.0,26102.0,0.001532]
[1693536848947,2.41941222,26103.0,26102.0,0.001532]
[1693536850098,2.18573178,26103.0,26102.0,0.001532]
[1693536850525,2.42274131,26103.0,26102.0,0.001532]
[1693536851524,2.18573178,26103.0,26102.0,0.001532]
[1693536851975,2.42512849,26103.0,26102.0,0.001532]
[1693536852374,2.18573178,26103.0,26102.0,0.001532]
[1693536853268,3.15824729,26103.0,26102.0,0.001532]
[1693536853467,3.16340729,26103.0,26102.0,0.001532]
[1693536853670,3.54948146,26103.0,26102.0,0.001532]
[1693536853870,3.54972146,26103.0,26102.0,0.001532]
[1693536854136,3.54894146,26103.0,26102.0,0.001532]
[1693536854282,3.54390146,26103.0,26102.0,0.001532]
[1693536854487,3.54378146,26103.0,26102.0,0.001532]
[1693536854828,3.54360146,26103.0,26102.0,0.001532]
[1693536855036,3.54390146,26103.0,26102.0,0.001532]
[1693536855175,3.54372146,26103.0,26102.0,0.001532]
[1693536855379,3.54342146,26103.0,26102.0,0.001532]
[1693536855585,3.54348146,26103.0,26102.0,0.001532]
[1693536855838,3.54168146,26103.0,26102.0,0.001532]
[1693536856040,3.54162146,26103.0,26102.0,0.001532]
[1693536856243,3.54150146,26103.0,26102.0,0.001532]
[1693536856447,3.54540146,26103.0,26102.0,0.001532]
[1693536856785,3.54456146,26103.0,26102.0,0.001532]
[1693536856937,3.54444146,26103.0,26102.0,0.001532]
[1693536857144,3.54294146,26103.0,26102.0,0.001532]
[1693536857344,3.53982146,26103.0,26102.0,0.001532]
[1693536857540,3.53910146,26103.0,26102.0,0.001532]
[1693536857742,3.53898146,26103.0,26102.0,0.001532]
[1693536857963,3.53892146,26103.0,26102.0,0.001532]
[1693536858166,3.22817195,26103.0,26102.0,0.001532]
[1693536858358,3.22811195,26103.0,26102.0,0.001532]
[1693536858581,3.22877195,26103.0,26102.0,0.001532]
[1693536858878,3.22721195,26103.0,26102.0,0.001532]
[1693536859078,3.22613195,26103.0,26102.0,0.001532]
[1693536859377,3.22385195,26103.0,26102.0,0.001532]
[1693536859609,3.22085195,26103.0,26102.0,0.001532]
[1693536859765,2.83345778,26103.0,26102.0,0.001532]
[1693536859959,2.83357778,26103.0,26102.0,0.001532]
[1693536860161,2.83279778,26103.0,26102.0,0.001532]
[1693536860571,2.83981778,26103.0,26102.0,0.001532]
[1693536860774,2.84017778,26103.0,26102.0,0.001532]
[1693536860972,2.83975778,26103.0,26102.0,0.001532]
[1693536861180,2.83945778,26103.0,26102.0,0.001532]
[1693536861341,2.83951778,26103.0,26102.0,0.001532]
[1693536861542,2.84149778,26103.0,26102.0,0.001532]
[1693536861750,2.84293778,26103.0,26102.0,0.001532]
[1693536861952,2.84197778,26103.0,26102.0,0.001532]
[1693536862152,2.84149778,26103.0,26102.0,0.001532]
[1693536862352,2.84143778,26103.0,26102.0,0.001532]
[1693536862812,2.84131778,26103.0,26102.0,0.001532]
[1693536863309,2.84107778,26103.0,26102.0,0.001532]
[1693536863514,2.84101778,26103.0,26102.0,0.001532]
[1693536863811,2.84089778,26103.0,26102.0,0.001532]
[1693536863992,2.84059778,26103.0,26102.0,0.001532]
[1693536864194,2.84053778,26103.0,26102.0,0.001532]
[1693536864519,2.84029778,26103.0,26102.0,0.001532]
[1693536864718,2.84629778,26103.0,26102.0,0.001532]
[1693536864867,2.84383778,26103.0,26102.0,0.001532]
[1693536865073,2.84407778,26103.0,26102.0,0.001532]
[1693536865286,2.84143778,26103.0,26102.0,0.001532]
[1693536865496,2.84221778,26103.0,26102.0,0.001532]
[1693536865703,2.84215778,26103.0,26102.0,0.001532]
[1693536865928,2.83825778,26103.0,26102.0,0.001532]
[1693536866091,2.83819778,26103.0,26102.0,0.001532]
[1693536866292,2.83765778,26103.0,26102.0,0.001532]
[1693536866551,2.83819778,26103.0,26102.0,0.001532]
[1693536866750,2.83831778,26103.0,26102.0,0.001532]
[1693536866951,2.83459778,26103.0,26102.0,0.001532]
[1693536867152,2.95513778,26103.0,26102.0,0.001532]
[1693536867354,2.95669778,26103.0,26102.0,0.001532]
[1693536867497,2.95675778,26103.0,26102.0,0.001532]
[1693536867697,2.95663778,26103.0,26102.0,0.001532]
[1693536867891,2.95555778,26103.0,26102.0,0.001532]
[1693536868099,2.95651778,26103.0,26102.0,0.001532]
[1693536868304,2.95549778,26103.0,26102.0,0.001532]
[1693536868508,2.95603778,26103.0,26102.0,0.001532]
[1693536868708,2.95459778,26103.0,26102.0,0.001532]
[1693536868906,2.95453778,26103.0,26102.0,0.001532]
[1693536869190,2.95675778,26103.0,26102.0,0.001532]
[1693536869389,2.95465778,26103.0,26102.0,0.001532]
[1693536869590,2.95429778,26103.0,26102.0,0.001532]
[1693536869734,2.95663778,26103.0,26102.0,0.001532]
[1693536870136,2.95645778,26103.0,26102.0,0.001532]
[1693536870332,2.95657778,26103.0,26102.0,0.001532]
[1693536870561,2.95645778,26103.0,26102.0,0.001532]
[1693536870989,2.95639778,26103.0,26102.0,0.001532]
[1693536871193,2.95681778,26103.0,26102.0,0.001532]
[1693536871530,2.95639778,26103.0,26102.0,0.001532]
[1693536871746,2.95633778,26103.0,26102.0,0.001532]
[1693536871950,3.21637845,26103.0,26102.0,0.001532]
[1693536872175,3.33485195,26103.0,26102.0,0.001532]
[1693536872382,3.35051195,26103.0,26102.0,0.001532]
[1693536872499,3.34853195,26103.0,26102.0,0.001532]
[1693536872697,3.34829195,26103.0,26102.0,0.001532]
[1693536872902,3.34823195,26103.0,26102.0,0.001532]
[1693536873106,3.34943195,26103.0,26102.0,0.001532]
[1693536873462,3.34805195,26103.0,26102.0,0.001532]
[1693536873643,3.34787195,26103.0,26102.0,0.001532]
[1693536873846,3.34793195,26103.0,26102.0,0.001532]
[1693536874046,3.34787195,26103.0,26102.0,0.001532]
[1693536874279,3.34679195,26103.0,26102.0,0.001532]
[1693536874443,3.34607195,26103.0,26102.0,0.001532]
[1693536874626,3.34529195,26103.0,26102.0,0.001532]
[1693536874974,3.34487195,26103.0,26102.0,0.001532]
[1693536875103,3.34481195,26103.0,26102.0,0.001532]
[1693536875629,2.95345778,26103.0,26102.0,0.001532]
[1693536875846,2.95399778,26103.0,26102.0,0.001532]
[1693536876062,2.95423778,26103.0,26102.0,0.001532]
[1693536876265,2.98624465,26103.0,26102.0,0.001532]
[1693536876471,2.98384465,26103.0,26102.0,0.001532]
[1693536876785,2.98564465,26103.0,26102.0,0.001532]
[1693536877047,2.98528465,26103.0,26102.0,0.001532]
[1693536877169,2.98426465,26103.0,26102.0,0.001532]
[1693536877370,2.98276465,26103.0,26102.0,0.001532]
[1693536877614,2.98294465,26103.0,26102.0,0.001532]
[1693536877815,2.98336465,26103.0,26102.0,0.001532]
[1693536878016,2.98366465,26103.0,26102.0,0.001532]
[1693536878212,2.98432465,26103.0,26102.0,0.001532]
[1693536878394,2.98372465,26103.0,26102.0,0.001532]
[1693536878595,2.98318465,26103.0,26102.0,0.001532]
[1693536878793,2.98138465,26103.0,26102.0,0.001532]